Cogmind - Beta 13 @@@ ROGUE MODE // 2024.06.04 @ 09:33:44 Player: N.W.L Result: Destroyed by 8R-AWN with 8R-AWN's Boregun Performance ------------- Evolutions (0) 0 Regions Visited (3) 600 Robots Destroyed (63) 315 Value Destroyed (1209) 1209 Prototype IDs (23) 460 Alien Tech Used (0) 0 Bonus (316) 316 TOTAL SCORE: 2900 Bonus ------- High Alert Combat Kills 16 Aligned with FarCom 300 Cogmind --------- Core Integrity 0/250 Matter 35/300 Energy 29/100 System Corruption 0% Temperature Cool (25) Movement Treading (320) Ox2 Location -10/Exiles Parts ------- > --- POWER (1) -------- (None) > --- PROPULSION (2) --- Light Treads Light Treads > --- UTILITY (2) ------ Heat Sink Huge Storage Unit > --- WEAPON (2) ------- Ion Cannon Minigun > --- INVENTORY (25) --- Light Treads Wheel Heat Sink Huge Storage Unit Cargo Storage Unit High-capacity Matter Pod (200) High-capacity Matter Pod (200) Structural Scanner Hacking Suite Hacking Suite PSU Rigger Heavy Assault Rifle Heavy Assault Rifle Rocket Launcher Rocket Launcher Rocket Launcher Rocket Launcher Improved Datajack Mining Laser Peak State ------------ > --- POWER ------------ Deuterium Engine > --- PROPULSION ------- Light Treads Wheel > --- UTILITY ---------- Huge Storage Unit Hacking Suite > --- WEAPON ----------- Heavy Assault Rifle Heavy Assault Rifle > --- INVENTORY -------- Light Treads Light Treads Light Treads Light Treads Light Treads Heat Sink Heat Sink Huge Storage Unit High-capacity Matter Pod High-capacity Matter Pod Structural Scanner Light Armor Plating Hacking Suite Hacking Suite Beam Cannon Heavy Assault Rifle Heavy Assault Rifle Heavy Assault Rifle Minigun Rocket Launcher Rocket Launcher Rocket Launcher Rocket Launcher Improved Datajack Mining Laser [Rating: 17] Favorites ----------- Power Ion Engine Engine Ion Engine Propulsion Light Treads Treads Light Treads Wheel Wheel Utility Huge Storage Unit Device Seismic Detector Storage Huge Storage Unit Hackware Hacking Suite Protection Light Armor Plating Weapon Heavy Assault Rifle Energy Gun Medium Laser Energy Cannon Ion Cannon Ballistic Gun Heavy Assault Rifle Launcher Rocket Launcher Special Weapon Mining Laser Build | -11 -10 -10 -10 ------- Run | Yrd Mat Min Exi Slots Evolved . | . . . . Power . | . . . . Propulsion . | . . . . Utility . | . . . . Weapon . | . . . . Parts Attached 46 | 7 15 14 10 Power 4 | 1 2 1 . Engine 4 | 1 2 1 . Core . | . . . . Reactor . | . . . . Propulsion 10 | 2 2 3 3 Treads 9 | 2 2 2 3 Leg . | . . . . Wheel 1 | . . 1 . Hover . | . . . . Flight . | . . . . Utility 7 | 2 2 1 2 Device 3 | 1 . 1 1 Storage 2 | 1 1 . . Processor . | . . . . Hackware 1 | . 1 . . Protection 1 | . . . 1 Artifact . | . . . . Weapon 25 | 2 9 9 5 Energy Gun 2 | 1 1 . . Energy Cannon 1 | . . . 1 Ballistic Gun 13 | 1 5 5 2 Ballistic Cannon . | . . . . Launcher 8 | . 3 3 2 Special Weapon 1 | . . 1 . Impact Weapon . | . . . . Slashing Weapon . | . . . . Piercing Weapon . | . . . . Special Melee Weapon . | . . . . Unidentified Prototypes . | . . . . Parts Lost 8 | . 1 1 6 Power 2 | . 1 . 1 Propulsion 2 | . . . 2 Utility 3 | . . 1 2 Weapon 1 | . . . 1 Highest Loss Streak 3 | . 1 1 3 To Critical Strikes 3 | . . . 3 Average Slot Usage (%) 98 | . 98 98 97 Engine 13 | . 12 14 12 Treads 23 | . 27 18 17 Wheel 4 | . . 9 10 Device 8 | . 8 6 11 Storage 14 | . 14 14 14 Hackware 4 | . 5 6 . Energy Gun 1 | . 2 . . Ballistic Gun 25 | . 24 25 25 Launcher 1 | . . 1 1 Naked Turns . | . . . . Heaviest Build 98 | 12 93 97 98 Greatest Support 40 | 40 40 40 40 Greatest Overweight (x) 9 | . 2 9 9 Average Overweight (x) 4 | . 1 7 8 Largest Inventory Capacity 25 | 8 25 25 25 Average Capacity 23 | 7 23 25 25 Most Carried 25 | 1 25 25 25 Average Carried 21 | . 19 24 24 Final Capacity 25 | 8 25 25 25 Final Carried 25 | 1 24 25 20 Class Distribution -------------------- 92% | Mutant 7% | Scavenger-Mutant Dominant Class ---------------- Mutant | -10/Materials Mutant | -10/Mines Mutant | -10/Exiles Resources | -11 -10 -10 -10 ----------- Run | Yrd Mat Min Exi Matter Collected 1833 | 318 1036 444 35 Remotely . | . . . . Salvage Created 1859 | 124 1218 512 5 Parts 134 | 12 80 42 . Haulers Intercepted 2 | . 2 . . Recyclers Shooed 4 | 1 3 . . Parts Field Recycled . | . . . . Retrieved Matter . | . . . . Parts Self-Destructed . | . . . . Prevented . | . . . . Kills | -11 -10 -10 -10 ------- Run | Yrd Mat Min Exi Combat Hostiles Destroyed 38 | . 21 10 7 Guns 15 | . 11 4 . AOE 23 | . 10 6 7 Classes Destroyed 11 | 3 6 1 1 Worker 8 | 1 6 1 . Builder 3 | . 1 2 . Tunneler 7 | 2 1 4 . Hauler 2 | . 2 . . Recycler 8 | 1 5 2 . Operator 2 | . 2 . . Watcher 2 | . 2 . . Swarmer 6 | . 6 . . Grunt 23 | . 15 8 . Sentry 2 | . . 2 . Assembled 7 | . . . 7 Best Kill Streak 8 | 2 8 4 7 Combat Bots Only 7 | . 6 2 7 Max Kills in Single Turn 3 | 1 3 2 3 Gunslinging . | . . . . Exploded 3 | . 3 1 3 Melee . | . . . . Uniques/NPCs Destroyed . | . . . . Combat | -11 -10 -10 -10 -------- Run | Yrd Mat Min Exi Hostile Shots Fired 163 | . 56 42 65 Missed 54 | . 18 17 19 Damage Taken 1659 | . 484 392 783 Core 252 | . 44 50 158 Absorbed by Shields . | . . . . Regen/Repaired (Parts) 84 | . 84 . . Core Remaining (%) 100 | 100 . . . Volleys Fired 179 | 16 86 55 22 Largest 2 | 2 2 2 2 Hottest 100 | 60 70 100 85 Shots Fired 320 | 29 164 86 41 Gun 263 | 29 155 56 23 Cannon 8 | . . . 8 Launcher 35 | . 9 16 10 Special 14 | . . 14 . Kinetic 224 | 16 129 56 23 Thermal 61 | 13 26 14 8 Explosive 35 | . 9 16 10 Electromagnetic . | . . . . Robot Hit Streak 14 | 5 14 7 7 Robot Miss Streak 4 | 2 4 3 3 Penetration Max . | . . . . Secondary Targets 1 | . 1 . . Max Gunslinging Chain 1 | . 1 . . Shots Hit Robots 181 | 13 103 45 20 Core Hits 102 | 5 52 28 17 Critical Kills . | . . . . Critical Parts Destroyed 1 | . 1 . . Critical Strikes 6 | . 5 . 1 Burn 4 | . 4 . . Destroy 2 | . 1 . 1 Melee Attacks . | . . . . Impact . | . . . . Slashing . | . . . . Piercing . | . . . . Sneak Attacks . | . . . . Combat Hostiles . | . . . . Follow-up Attacks . | . . . . Damage Inflicted 4671 | 136 2359 1372 804 Guns 2398 | 136 1454 569 239 Cannons 10 | . . . 10 Explosions 2263 | . 905 803 555 Melee . | . . . . Ramming . | . . . . Kinetic 2106 | 69 1229 569 239 Thermal 459 | 67 382 . 10 Explosive 2106 | . 748 803 555 Electromagnetic . | . . . . Impact . | . . . . Slashing . | . . . . Piercing . | . . . . Highest Corruption . | . . . . Average Corruption . | . . . . Corruption Purged . | . . . . Corruption Blocked . | . . . . Overload Shots . | . . . . Overflow Damage 107 | . 75 9 23 Projectiles . | . . . . Explosions 107 | . 75 9 23 Melee . | . . . . Knockbacks . | . . . . Impact . | . . . . Kinetic . | . . . . Secondary . | . . . . Self-Inflicted Damage 163 | . 70 52 41 Shots 6 | . 3 2 1 Rammed . | . . . . Targets Rammed . | . . . . Kicked . | . . . . Crushed . | . . . . Highest Temperature 234 | . 234 82 185 Average Temperature 52 | . 76 25 55 Received Heat Transfer 360 | . 210 150 . Siege Activations . | . . . . Robots Corrupted . | . . . . Combat Hostiles . | . . . . Parts Fried . | . . . . Impact Corruptions . | . . . . Robots Melted . | . . . . Combat Hostiles . | . . . . Parts Melted 3 | . 3 . . Heat Transferred 1257 | 150 1062 . 45 Parts Sabotaged . | . . . . Parts Stolen . | . . . . Parts Stripped . | . . . . Power Chain Reactions . | . . . . Alert | -11 -10 -10 -10 ------- Run | Yrd Mat Min Exi Peak Influence 477 | 20 477 222 . Initial 167 | . 13 167 . Average 162 | 9 222 95 . Maximum Alert Level 2 | . 2 1 . Low Security (%) 67 | 100 45 92 . Level 1 21 | . 32 7 . Level 2 11 | . 21 . . Level 3 . | . . . . Level 4 . | . . . . Level 5 . | . . . . High Security . | . . . . Max Security . | . . . . Squads Dispatched 7 | . 6 1 . Investigation 4 | . 3 1 . Extermination . | . . . . Reinforcement 3 | . 3 . . Assault . | . . . . Garrison . | . . . . Intercept . | . . . . Searches Triggered . | . . . . Construction Impeded . | . . . . Haulers Reinforced . | . . . . Active Scanning Responses . | . . . . Cargo Convoy Interrupts . | . . . . Stealth | -11 -10 -10 -10 --------- Run | Yrd Mat Min Exi Distress Signals 2 | . 1 1 . Communications Jammed . | . . . . Distress Signals . | . . . . Times Spotted 46 | . 31 10 5 Peak Tracking Total 9 | . 4 2 9 Tactical Retreats 2 | . 2 . . Traps | -11 -10 -10 -10 ------- Run | Yrd Mat Min Exi Traps Triggered . | . . . . Indirectly . | . . . . Trap Hack Attempts . | . . . . Triggered . | . . . . Disarmed . | . . . . Reprogrammed . | . . . . Reused . | . . . . Traps Extracted . | . . . . Installed . | . . . . Triggered . | . . . . Machines | -11 -10 -10 -10 ---------- Run | Yrd Mat Min Exi Machines Disabled 13 | . 5 1 7 Max in Single Turn 2 | . 2 1 2 Machines Repaired . | . . . . Machines Dismantled . | . . . . Machines Sabotaged . | . . . . Overloaded Fab Kills . | . . . . Hacking | -11 -10 -10 -10 --------- Run | Yrd Mat Min Exi Machines Accessed 11 | . 8 1 2 Terminals 5 | . 5 . . Fabricators . | . . . . Repair Stations 1 | . 1 . . Recycling Units 2 | . 2 . . Scanalyzers . | . . . . Garrison Access . | . . . . Total Hacks 33 | . 27 1 5 Successful 23 | . 17 1 5 Failed 10 | . 10 . . Catastrophic . | . . . . Database Lockouts . | . . . . Manual 13 | . 12 . 1 Terminals 19 | . 19 . . Fabricators . | . . . . Repair Stations 2 | . 2 . . Recycling Units 6 | . 6 . . Scanalyzers . | . . . . Garrison Access . | . . . . Terminal Hacks 15 | . 9 1 5 Record 4 | . . . 4 Part Schematic 1 | . 1 . . Robot Analysis 2 | . 2 . . Open Door 1 | . . 1 . Terminal Index 1 | . 1 . . Locate Traps 3 | . 3 . . Registered Prototypes 1 | . 1 . . Zone Layout 1 | . 1 . . Derelict Proto ID Bank 1 | . . . 1 Fabricator Hacks . | . . . . Repair Station Hacks 2 | . 2 . . Scan Component 1 | . 1 . . Repair 1 | . 1 . . Recycling Unit Hacks 2 | . 2 . . Retrieve Components 2 | . 2 . . Scanalyzer . | . . . . Garrison Access Hacks . | . . . . Unauthorized Hacks 4 | . 4 . . Terminals 2 | . 2 . . Botnet 2 | . 2 . . Fabricators . | . . . . Repair Stations . | . . . . Recycling Units 2 | . 2 . . Tunnel 2 | . 2 . . Scanalyzers . | . . . . Garrison Access . | . . . . Data Cores Recovered . | . . . . Used . | . . . . Hacking Detections 6 | . 6 . . Full Trace Events 2 | . 2 . . Feedback Events . | . . . . Feedback Blocked . | . . . . Robot Schematics Acquired . | . . . . Robots Built . | . . . . Authchips . | . . . . Time . | . . . . Total Robot Build Rating . | . . . . Part Schematics Acquired 1 | . 1 . . Parts Built . | . . . . Authchips . | . . . . Time . | . . . . Total Part Build Rating . | . . . . Parts Repaired 1 | . 1 . . Time 26 | . 26 . . Parts Recycled . | . . . . Recycled Matter . | . . . . Retrieved Matter . | . . . . Retrieved Components 11 | . 11 . . Parts Scanalyzed . | . . . . Part Schematics Acquired . | . . . . Parts Damaged . | . . . . Bothacking | -11 -10 -10 -10 ------------ Run | Yrd Mat Min Exi Used RIF Installer . | . . . . Robots Hacked . | . . . . Non-combat . | . . . . Combat . | . . . . Robot Hacks Applied . | . . . . Relay Couplers Released . | . . . . Fabnet Peak Effective % . | . . . . Robots Rewired . | . . . . Allies Hacked . | . . . . Hacks Repelled . | . . . . Allies | -11 -10 -10 -10 -------- Run | Yrd Mat Min Exi Total Allies 3 | . . 3 . Largest Group 3 | . . 3 3 Highest-Rated Group 40 | . . 40 40 Highest-Rated Ally 16 | . . 16 16 Total Orders 2 | . . . 2 STAY 1 | . . . 1 FOLLOW 1 | . . . 1 Ally Attacks 29 | . . . 29 Total Damage 19 | . . . 19 Kills . | . . . . Allies Corrupted . | . . . . Allies Melted . | . . . . Intel | -11 -10 -10 -10 ------- Run | Yrd Mat Min Exi Robot Analysis Total 2 | . 2 . . Derelict Logs Recovered 1 | . . 1 . Drone Launches . | . . . . Drone Recoveries . | . . . . Exploration | -11 -10 -10 -10 ------------- Run | Yrd Mat Min Exi Turns Passed 5691 | 162 2711 2076 742 Spaces Moved 1898 | 70 790 751 287 Core 5 | 5 . . . Treads 1086 | 65 790 211 20 Legs . | . . . . Wheels 807 | . . 540 267 Hover . | . . . . Flight . | . . . . Fastest Speed 50 | 50 160 215 215 Average Speed 259 | 152 295 244 222 Slowest Speed 320 | 160 320 320 320 Overloaded Moves . | . . . . Propulsion Burnouts . | . . . . Robots Hopped . | . . . . Cave-ins Triggered . | . . . . Exploration Rate (%) 65 | 5 91 98 67 Regions Visited 3 Branch Regions 2 Pre-discovered Areas 4 | . 2 1 1 Known Exits Taken . | . . . . Unknown Exits Taken 3 | 1 1 1 . Scrap Searched 2 | . . 2 . Spaces Dug 20 | . . 10 10 Terrain Destroyed 304 | . 141 108 55 Melee . | . . . . Projectile 4 | . . 3 1 AOE 300 | . 141 105 54 Terrain Rammed . | . . . . Walls Destroyed . | . . . . Machines Disabled . | . . . . Actions | -11 -10 -10 -10 --------- Run | Yrd Mat Min Exi Total 2321 | 93 998 879 351 Wait 147 | . 84 33 30 Move 1895 | 69 789 750 287 Hop . | . . . . Pick Up 34 | 1 20 12 1 Fast Attach 11 | 7 3 1 . Attach 6 | . 1 . 5 Detach 2 | . 2 . . Swap 29 | . 11 13 5 Drop 18 | . 2 15 1 Fire 179 | 16 86 55 22 Melee . | . . . . Ram . | . . . . Kick . | . . . . Crush . | . . . . Escape Stasis . | . . . . Rewire . | . . . . Trap . | . . . . Miscellaneous . | . . . . Route ------- -11/Scrapyard -10/Materials (discovered 5 exits: [*Mat x3] / *Min x2) -10/Mines (discovered 4 exits: [*Mat x2] / *Exi / [*Sub]) -10/Exiles History --------- Turn | Location | Event 3 | -11/Scrapyard | Discovered new exit (range 15) 163 | -11/Scrapyard | Entered Materials 315 | -10/Materials | Build established: Mutant 650 | -10/Materials | Discovered new exit (range 12) 1175 | -10/Materials | Discovered new exit (range 13) 1400 | -10/Materials | Discovered new exit (range 16) 1784 | -10/Materials | Discovered new exit (range 16) 1885 | -10/Materials | Repaired Lgt. Treads 2455 | -10/Materials | Discovered new exit (range 4) 2874 | -10/Materials | Entered Mines 3028 | -10/Mines | Deemed a non-threat by the Exiles lab entrance 3028 | -10/Mines | Discovered new exit (range 5) 3397 | -10/Mines | Discovered new exit (range 9) 3445 | -10/Mines | Build established: Scavenger-Mutant 3577 | -10/Mines | Met a Derelict shopkeep closing up shop 3854 | -10/Mines | Discovered new exit (range 7) 3886 | -10/Mines | Build established: Mutant 4208 | -10/Mines | Excavation squad dispatched 4208 | -10/Mines | A large section of the Mines collapsed 4676 | -10/Mines | Learned location of Storage (-9) 4757 | -10/Mines | Assisted by bots powering up and referring to "LRC-V3" 4921 | -10/Mines | Discovered new exit (range 6) 4950 | -10/Mines | Entered Exiles 4950 | -10/Exiles | Accompanied by 3 allies 5002 | -10/Exiles | Met 8R-AWN 5034 | -10/Exiles | Met EX-HEX 5103 | -10/Exiles | Met EX-BIN 5127 | -10/Exiles | Aligned with FarCom system 5129 | -10/Exiles | Given EX-Vault access code 5178 | -10/Exiles | Opened EX-Vault 5190 | -10/Exiles | Found PSU Rigger 5234 | -10/Exiles | Warned to stay clear of 0b10 Research branches 5292 | -10/Exiles | Met EX-DEC 5408 | -10/Exiles | Learned location of Zion (-6) 5529 | -10/Exiles | Attacked by the Exiles 5598 | -10/Exiles | Destroyed 7 combat bots 5602 | -10/Exiles | Core integrity fell below 50% 5666 | -10/Exiles | Core integrity fell below 20% 5675 | -10/Exiles | Lost 3 allies 5692 | -10/Exiles | Destroyed by 8R-AWN with 8R-AWN's Boregun Last Messages --------------- 05675_ HV Slug penetrates Wall. 05675_ HV Slug penetrates Earth. 05679_ Penetrated by HV Slug. 05679_ Critical hit (Destroy). 05679_ HV Slug penetrates Wall. 05679_ Penetrated by HV Slug. 05679_ HV Slug penetrates Wall. 05684_ Penetrated by HV Slug. 05684_ Critical hit (Destroy). 05684_ Lgt. Armor Plating destroyed. 05684_ HV Slug penetrates Wall. 05684_ Penetrated by HV Slug. 05684_ HV Slug penetrates Wall. 05688_ Penetrated by HV Slug. 05688_ HV Slug penetrates Wall. 05688_ HV Slug penetrates Machine. 05689_ 8R-AWN suffers critical hit (Destroy). 05692_ Penetrated by HV Slug. 05692_ HV Slug penetrates Wall. 05692_ Penetrated by HV Slug. Map ----- +----------------------------------------------------+ | ?????????????????????????????????????????????????? | | ?????????????????????????????????????????????????? | | ?????????????????????????????????????????????????? | | ?????????????????????????????????????????????????? | | ?????????????????????????????????????????????????? | | ?????????????????????????????????????????????????? | | ?????????????????????????????????????????????????? | | ?????????????????????????????????????????????????? | | ?????????????????????????????????????????????????? | | ????????????? ???????????????????????????????????? | | ???????????? ??????????????#######?????????????? | | ???????????? ######???????#!!! "#?????????????? | | ??????????? #""#??????# "#?????????????? | | ???????????? ??#???# "#?????????????? | | ????????????#" #? ??## ""#?????????????? | | ????????????"" #;##; "#?????????????? | | ??????????????# #; ""#?????????????? | | ???????????????# # #??#####????????? | | ??????????????????# ## #????????? | | ??????????????????#### # # #????????? | | ?????????????????????#; # #???????? | | ???????????????######## # #????????" | | ???????????????# !! g # #?????# | | ???????????????#! ###???### | | ???????????????#! # " #####X# | | ???????????????#! @ # | | ???????????????# ! "; #### # | | ???????????????########;# #???#### | | ?????????????????????# # #?????#### | | ????????????????????# ?###????????### | | ???????????????????# #???????????????## | | ??????????????????# #?????????????????## | | ?????????????????# #???????????????????##" | | ????????????????# #?????????????????????#""" | | ???????????????? #?????????????????????##" | | ???????????????#???????????????????????#"" | | ???????????????????????????????????????#""" | | ??????????????????????????????????????#""" | | ??????????????????????????????????????#""" | | ??????????????????????????????????????#"" | | ??????????????????????????????????????#""" | | ??????????????????????????????????????#"" | | ??????????????????????????????????????##"" | | ???????????????????????????????????????#"""" | | ???????????????????????????????????????## | | ????????????????????????????????????????#" | | ????????????????????????????????????????#"""" | | ????????????????????????????????????????#"" | | ????????????????????????????????????????#" | | ????????????????????????????????????????#""" | +----------------------------------------------------+ Best States ------------- Heat Dissipation 35 Energy Generation 14 Energy Capacity 275 Matter Stores 300 Matter Capacity 300 Sight Range 16 Terrain Scan Density 10 Armor Coverage 150 Evasion (%) 40 Recoil Reduction 2 Offensive Hacking 10 Item Schematics ----------------- Cargo Storage Unit | -10/Materials | Hacked Robot Schematics ------------------ None Fabricated ------------ Nothing Alien Tech Used ----------------- None Achievements -------------- None Challenges ------------ None Game ------ Seed DroneExplosiveCharge Manual? 0 Play Time 00:24:16 Cumulative 133.2 hours Start 2024.06.04 @ 09:11:22 End 2024.06.04 @ 09:33:44 Sessions 1 Manual Loads 0 Difficulty Rogue Special Mode None Game No. 62 Rogue 62 Adventurer 0 Explorer 0 Win Type - Total 2 Types 1/0/1/0/0/0/0/0/0 Lore% 62 Gallery% 74 Achievement% 56 Wizard Run 0 Options --------- Layout 1 ASCII 0 Keyboard 0 Movement Mouse Keybinds 0 Fullscreen 2 Font 18/SmallcapsGlow Map View 50x40 Zoom Use 0% Tactical HUD 1 Map Filters NONE Filters NONE Steam 1 RUN: fc2fe0df-8507-4a5d-83f4-9798e5cb70a1